Cogmind - Beta 15 @@@ ROGUE MODE // 2025.06.08 @ 15:28:56 Player: Zaros426 Result: Destroyed by Optimus with Helical Railgun Performance ------------- Evolutions (0) 0 Regions Visited (5) 1000 Robots Destroyed (71) 355 Value Destroyed (1323) 1323 Prototype IDs (20) 400 Alien Tech Used (0) 0 Bonus (800) 800 TOTAL SCORE: 3878 Bonus ------- Registered with UFD 300 Met Optimus in HQ 500 Cogmind --------- Core Integrity 0/250 Matter 195/300 Energy 17/100 System Corruption 2% Temperature Cool (0) Movement Rolling (130) Ox2 Location -9/Scraptown Parts ------- > --- POWER (1) -------- (None) > --- PROPULSION (2) --- Compact Wheel > --- UTILITY (2) ------ High-capacity Storage Unit > --- WEAPON (2) ------- (None) > --- INVENTORY (20) --- Tri-treads Cooling System Humpback Siege Articulator Experimental Sensor Array Authchip [Propulsion] A0-MCA's Component Scanner Siege Cannon Mini Grenade Launcher Mini Grenade Launcher Plasma Cutter CPS Tube (2) Multitool DRS Beacon (Ready) Peak State ------------ > --- POWER ------------ Improved Ion Engine Improved Ion Engine > --- PROPULSION ------- Spiked Treads Compact Wheel Compact Wheel Compact Wheel > --- UTILITY ---------- High-capacity Storage Unit Tower Shield Force Field > --- WEAPON ----------- EM Pulse Gun EM Pulse Gun CPS Tube Makeshift Axe > --- INVENTORY -------- Improved Medium Treads Scrap Suit Cooling System Humpback Improved Trap Scanner Experimental Sensor Array IFF Parser ECM Suite Hardened Light Armor Plating Authchip [Propulsion] A0-MCA's Component Scanner Heavy EM Pulse Gun Mini Grenade Launcher Mini Grenade Launcher Plasma Cutter CPS Tube Multitool DRS Beacon [Rating: 51] Favorites ----------- Power Subdweller Power Source Engine Subdweller Power Source Power Core Light Nuclear Core Propulsion Spiked Treads Treads Spiked Treads Wheel Compact Wheel Utility High-capacity Storage Unit Device Experimental Sensor Array Storage High-capacity Storage Unit Processor Targeting Computer Protection Tower Shield Weapon Makeshift Axe Energy Gun EM Pulse Gun Energy Cannon Subdweller Beam Cannon Ballistic Gun Battle Rifle Ballistic Cannon Battle Cannon Launcher Grenade Launcher Special Weapon CPS Tube Impact Weapon Hammer Slashing Weapon Makeshift Axe Build | -11 -10 -10 -10 -9 -9 ------- Run | Yrd Mat Min Sub Rec Scr Slots Evolved . | . . . . . . Power . | . . . . . . Propulsion . | . . . . . . Utility . | . . . . . . Weapon . | . . . . . . Parts Attached 58 | 7 11 2 17 5 16 Power 8 | 1 2 . 1 . 4 Engine 7 | 1 2 . 1 . 3 Core 1 | . . . . . 1 Reactor . | . . . . . . Propulsion 9 | 2 . . 2 3 2 Treads 5 | 2 . . 2 . 1 Leg . | . . . . . . Wheel 4 | . . . . 3 1 Hover . | . . . . . . Flight . | . . . . . . Utility 16 | 2 4 1 3 1 5 Device 7 | 1 1 1 . 1 3 Storage 4 | 1 2 . . . 1 Processor 1 | . 1 . . . . Hackware . | . . . . . . Protection 4 | . . . 3 . 1 Artifact . | . . . . . . Weapon 25 | 2 5 1 11 1 5 Energy Gun 7 | . 3 . 1 . 3 Energy Cannon 3 | . . . 3 . . Ballistic Gun 5 | 2 1 . 2 . . Ballistic Cannon 1 | . . . 1 . . Launcher 4 | . 1 1 2 . . Special Weapon 2 | . . . . . 2 Impact Weapon 1 | . . . . 1 . Slashing Weapon 2 | . . . 2 . . Piercing Weapon . | . . . . . . Special Melee Weapon . | . . . . . . Unidentified Prototypes 1 | . . 1 . . . Parts Lost 12 | . 5 . . . 7 Power 2 | . 1 . . . 1 Propulsion 2 | . . . . . 2 Utility 3 | . 1 . . . 2 Weapon 5 | . 3 . . . 2 Highest Loss Streak 7 | . 2 . . . 7 To Critical Strikes . | . . . . . . Average Backups 12 | 2 10 18 7 18 19 Power . | . . 1 . 1 . Propulsion 1 | . 2 2 . 1 1 Utility 5 | 1 4 7 2 6 8 Weapon 4 | . 2 7 3 7 4 Tool/Special . | . . . . . . Unused Backups 49 | . 4 3 10 1 31 Power 1 | . . . . . 1 Propulsion 3 | . . 1 2 . . Utility 29 | . 2 2 5 . 20 Weapon 11 | . 2 . 3 1 5 Tool/Special 5 | . . . . . 5 Average Slot Usage (%) 69 | . 94 94 69 55 50 Engine 10 | . 13 14 10 7 8 Treads 16 | . 28 28 21 4 . Wheel 4 | . . . . 9 14 Device 3 | . 8 . 2 7 4 Storage 6 | . 14 14 3 7 6 Protection 6 | . . . 10 7 6 Energy Gun 2 | . 15 1 . . 1 Energy Cannon 2 | . . . 5 6 . Ballistic Gun 5 | . 12 14 4 . . Launcher 2 | . . 12 1 . . Slashing Weapon 4 | . . . 5 5 7 Peak Build Rating 51 | 7 10 19 41 45 51 Average Rating 27 | 6 8 10 26 43 40 On Entrance 18 | . 7 10 10 41 41 Naked Turns . | . . . . . . Heaviest Build 255 | 15 50 50 100 95 255 Greatest Support 48 | 40 40 40 40 40 48 Greatest Overweight (x) 7 | . 1 1 2 5 7 Average Overweight (x) 1 | . . 1 . 3 2 Largest Inventory Capacity 35 | 8 20 20 20 20 35 Average Capacity 16 | 7 17 20 10 20 22 Most Carried 35 | 5 16 20 20 20 35 Average Carried 13 | 2 10 18 7 19 20 Final Capacity 20 | 8 20 20 20 20 20 Final Carried 20 | 5 16 19 18 20 19 Class Distribution -------------------- 60% | Mutant 24% | Subdweller-Mutant 8% | Hauler-Mutant 3% | Scavenger-Mutant Dominant Class ---------------- Mutant | -10/Materials Mutant | -10/Mines Subdweller-Mutant | -10/Subcaves Mutant | -9/Recycling Mutant | -9/Scraptown Resources | -11 -10 -10 -10 -9 -9 ----------- Run | Yrd Mat Min Sub Rec Scr Matter Collected 2037 | 366 416 63 973 107 112 Remotely . | . . . . . . Salvage Created 2643 | 190 876 34 458 740 345 Parts 160 | 11 54 8 36 31 20 Haulers Intercepted 1 | . 1 . . . . Recyclers Shooed 4 | . 1 . . 3 . Parts Field Recycled . | . . . . . . Retrieved Matter . | . . . . . . Parts Self-Destructed 20 | . . . 20 . . Prevented . | . . . . . . Kills | -11 -10 -10 -10 -9 -9 ------- Run | Yrd Mat Min Sub Rec Scr Combat Hostiles Destroyed 40 | . 18 6 16 . . Guns 15 | . 12 . 3 . . Cannons 6 | . . . 6 . . AOE 16 | . 5 6 5 . . Classes Destroyed 11 | 3 7 . . 1 . Worker 3 | 1 2 . . . . Builder 4 | . . . . 4 . Tunneler 5 | 5 . . . . . Hauler 1 | . 1 . . . . Recycler 12 | 1 2 . . 9 . Mechanic 1 | . 1 . . . . Operator 2 | . 2 . . . . Watcher 3 | . 3 . . . . Swarmer 18 | . 9 6 3 . . Grunt 8 | . 6 . 2 . . Subdweller 14 | . 3 . 11 . . Best Kill Streak 6 | 2 5 3 3 6 . Combat Bots Only 5 | . 5 3 3 . . Max Kills in Single Turn 3 | 1 2 3 2 1 . Gunslinging 1 | . 1 . . . . Exploded 3 | . 2 3 2 . . Melee . | . . . . . . Uniques/NPCs Destroyed . | . . . . . . Combat | -11 -10 -10 -10 -9 -9 -------- Run | Yrd Mat Min Sub Rec Scr Hostile Shots Fired 213 | . 63 8 77 . 65 Missed 59 | . 14 4 25 . 16 Hits 154 | . 49 4 52 . 49 Melee 3 | . . . . . 3 Projectile 151 | . 49 4 52 . 46 Critical Strikes 4 | . . . 2 . 2 Damage Taken 2381 | . 560 29 1008 . 784 Core 260 | . 67 . 72 . 121 Absorbed by Shields 112 | . . . . . 112 Core Remaining (%) 100 | 100 . . . . . Volleys Fired 145 | 16 67 4 56 . 2 Largest 2 | 2 2 2 2 . 1 Hottest 113 | 40 80 65 113 . . Shots Fired 271 | 32 131 5 100 1 2 Gun 196 | 32 130 2 32 . . Cannon 58 | . . . 57 1 . Launcher 15 | . 1 3 11 . . Special 2 | . . . . . 2 Kinetic 156 | 32 62 1 61 . . Thermal 35 | . . . 34 1 . Explosive 9 | . 1 3 5 . . Electromagnetic 69 | . 68 1 . . . Robot Hit Streak 17 | 5 9 2 17 2 4 Robot Miss Streak 6 | 1 6 1 2 . . Penetration Max . | . . . . . . Secondary Targets 4 | . 3 . 1 . . Max Gunslinging Chain 1 | . 1 . 1 . . Shots Hit Robots 185 | 21 79 2 52 18 13 Core Hits 95 | 8 42 7 22 11 5 Critical Kills 2 | . . . 2 . . Critical Parts Destroyed 1 | 1 . . . . . Critical Strikes 5 | 1 2 . 2 . . Meltdown 2 | . . . 2 . . Destroy 1 | 1 . . . . . Corrupt 2 | . 2 . . . . Melee Attacks 103 | . . . 59 33 11 Impact . | . . . . . . Slashing 103 | . . . 59 33 11 Piercing . | . . . . . . Sneak Attacks 12 | . . . 1 11 . Combat Hostiles . | . . . . . . Follow-up Attacks . | . . . . . . Damage Inflicted 5402 | 280 1395 245 1618 1074 790 Guns 1831 | 280 1061 15 475 . . Cannons 516 | . . . 490 26 . Explosions 1143 | . 334 228 581 . . Melee 1910 | . . . 72 1048 790 Ramming 2 | . . 2 . . . Kinetic 1861 | 280 534 15 1032 . . Thermal 582 | . 194 . 362 26 . Explosive 520 | . 140 228 152 . . Electromagnetic 527 | . 527 . . . . Impact . | . . . . . . Slashing 1910 | . . . 72 1048 790 Piercing . | . . . . . . Highest Corruption 3 | . 2 2 2 3 3 Average Corruption 2 | . 2 2 2 2 2 Corruption Purged . | . . . . . . Corruption Blocked . | . . . . . . Effects 153 | . 15 19 99 20 . Message Errors 49 | . 7 8 26 8 . Matter Fused 36 | . 2 5 24 5 . Heat Flow Errors 8 | . 1 . 4 3 . Energy Discharges 15 | . 2 3 9 1 . Parts Fused 4 | . 1 . 2 1 . Data Loss (minor) 17 | . 1 2 13 1 . Data Loss (major) 6 | . . . 6 . . Misfires 13 | . 1 . 11 1 . Alerts 5 | . . 1 4 . . Overload Shots . | . . . . . . Overflow Damage 189 | . 2 . 37 150 . Projectiles 5 | . . . 5 . . Explosions 2 | . 2 . . . . Melee 182 | . . . 32 150 . Knockbacks 1 | . . . 1 . . Impact . | . . . . . . Kinetic 1 | . . . 1 . . Secondary . | . . . . . . Self-Inflicted Damage 39 | . 39 . . . . Shots 1 | . 1 . . . . Rammed 1 | . . 1 . . . Targets Rammed 1 | . . 1 . . . Kicked . | . . . . . . Crushed . | . . . . . . Highest Temperature 257 | . 244 24 237 257 12 Average Temperature 45 | . 35 13 82 88 4 Received Heat Transfer 534 | . 105 . 186 . 243 Siege Activations . | . . . . . . Martial Activations . | . . . . . . Shielding Activations . | . . . . . . Robots Disrupted . | . . . . . . Combat Hostiles . | . . . . . . Robots Corrupted 1 | . 1 . . . . Combat Hostiles 1 | . 1 . . . . Parts Fried 2 | . 2 . . . . Impact Corruptions . | . . . . . . Robots Melted 2 | . . . 2 . . Combat Hostiles 2 | . . . 2 . . Parts Melted 3 | . 1 . 2 . . Heat Transferred 842 | . 250 . 555 37 . Parts Sabotaged . | . . . . . . Parts Stolen . | . . . . . . Parts Stripped . | . . . . . . Power Chain Reactions 5 | . 5 . . . . Alert | -11 -10 -10 -10 -9 -9 ------- Run | Yrd Mat Min Sub Rec Scr Maximum Alert Level . | . . . . . . Low Security (%) 100 | 100 100 100 . 100 . Level 1 . | . . . . . . Level 2 . | . . . . . . Level 3 . | . . . . . . Level 4 . | . . . . . . Level 5 . | . . . . . . High Security . | . . . . . . Max Security . | . . . . . . Peak Influence 166 | 5 166 93 . 60 . Initial 27 | . . 27 . . . Average 35 | 1 65 15 . 10 . Influence Increases 1274 | 35 590 177 200 272 . Destroy 0b10 Robot/C 520 | . 300 120 100 . . Destroy 0b10 Robot/NC 155 | 35 55 . . 65 . Destroy Leader 98 | . 68 20 10 . . Successful Hack 50 | . 35 . . 15 . Select Force Hacks 210 | . 30 . . 180 . Disable Machine 90 | . 75 15 . . . Destroy Structure 46 | . 12 22 . 12 . Lose Combat Pursuer 105 | . 15 . 90 . . Influence Decreases 1274 | 35 518 217 232 272 . Entered New Map 62 | . . 45 17 . . Time Decay 1176 | 35 482 172 215 272 . Lost Part 36 | . 36 . . . . Squads Dispatched 3 | . 3 . . . . Investigation 2 | . 2 . . . . Extermination . | . . . . . . Reinforcement 1 | . 1 . . . . Assault . | . . . . . . Garrison . | . . . . . . Intercept . | . . . . . . Searches Triggered . | . . . . . . Construction Impeded . | . . . . . . Haulers Reinforced . | . . . . . . Active Scanning Responses . | . . . . . . Cargo Convoy Interrupts . | . . . . . . Stealth | -11 -10 -10 -10 -9 -9 --------- Run | Yrd Mat Min Sub Rec Scr Distress Signals . | . . . . . . Communications Jammed . | . . . . . . Distress Signals . | . . . . . . Times Spotted 62 | . 26 6 16 . 14 Peak Tracking Total 7 | . 5 3 5 . 7 Tactical Retreats 4 | . 1 . 3 . . Traps | -11 -10 -10 -10 -9 -9 ------- Run | Yrd Mat Min Sub Rec Scr Traps Triggered 5 | . 2 . 3 . . Indirectly . | . . . . . . Trap Hack Attempts . | . . . . . . Triggered . | . . . . . . Disarmed . | . . . . . . Reprogrammed . | . . . . . . Reused . | . . . . . . Traps Extracted . | . . . . . . Installed . | . . . . . . Triggered . | . . . . . . Machines | -11 -10 -10 -10 -9 -9 ---------- Run | Yrd Mat Min Sub Rec Scr Machines Disabled 7 | . 5 1 1 . . Max in Single Turn 2 | . 2 1 1 . . Machines Repaired . | . . . . . . Machines Dismantled . | . . . . . . Machines Sabotaged . | . . . . . . Overloaded Fab Kills . | . . . . . . Hacking | -11 -10 -10 -10 -9 -9 --------- Run | Yrd Mat Min Sub Rec Scr Machines Accessed 31 | . 8 . 2 14 7 Terminals 13 | . 7 . . 6 . Fabricators . | . . . . . . Repair Stations . | . . . . . . Recycling Units 7 | . 1 . . 6 . Scanalyzers . | . . . . . . Garrison Access . | . . . . . . Total Hacks 145 | . 35 . 13 48 49 Successful 119 | . 19 . 13 38 49 Failed 26 | . 16 . . 10 . Catastrophic 4 | . 2 . . 2 . Database Lockouts . | . . . . . . Manual 45 | . 30 . . 15 . Terminals 48 | . 31 . . 17 . Fabricators . | . . . . . . Repair Stations . | . . . . . . Recycling Units 11 | . 4 . . 7 . Scanalyzers . | . . . . . . Garrison Access . | . . . . . . Terminal Hacks 98 | . 8 . 13 28 49 Record 85 | . . . 12 24 49 Part Schematic 2 | . . . . 2 . Robot Analysis 2 | . 2 . . . . Prototype ID Bank 4 | . 3 . . 1 . Terminal Index 2 | . 1 . . 1 . Locate Traps 1 | . 1 . . . . Zone Layout 1 | . 1 . . . . Proto ID Catalog 1 | . . . 1 . . Fabricator Hacks . | . . . . . . Repair Station Hacks . | . . . . . . Recycling Unit Hacks . | . . . . . . Scanalyzer . | . . . . . . Garrison Access Hacks . | . . . . . . Unauthorized Hacks 21 | . 11 . . 10 . Terminals 14 | . 10 . . 4 . Botnet 4 | . 2 . . 2 . Disrupt 1 | . 1 . . . . Operators 1 | . 1 . . . . Skim 8 | . 6 . . 2 . Fabricators . | . . . . . . Repair Stations . | . . . . . . Recycling Units 7 | . 1 . . 6 . Tunnel 7 | . 1 . . 6 . Scanalyzers . | . . . . . . Garrison Access . | . . . . . . Data Cores Recovered 1 | . 1 . . . . Used . | . . . . . . Hacking Detections 14 | . 8 . . 6 . Full Trace Events 5 | . 1 . . 4 . Feedback Events 1 | . . . . 1 . Corruption 1 | . . . . 1 . Feedback Blocked . | . . . . . . Robot Schematics Acquired . | . . . . . . Robots Built . | . . . . . . Authchips . | . . . . . . Time . | . . . . . . Total Robot Build Rating . | . . . . . . Part Schematics Acquired 2 | . . . . 2 . Parts Built . | . . . . . . Authchips . | . . . . . . Time . | . . . . . . Total Part Build Rating . | . . . . . . Parts Repaired . | . . . . . . Time . | . . . . . . Parts Recycled . | . . . . . . Recycled Matter . | . . . . . . Retrieved Matter . | . . . . . . Retrieved Components . | . . . . . . Parts Scanalyzed . | . . . . . . Part Schematics Acquired . | . . . . . . Parts Damaged . | . . . . . . Bothacking | -11 -10 -10 -10 -9 -9 ------------ Run | Yrd Mat Min Sub Rec Scr Used RIF Installer . | . . . . . . Robots Hacked . | . . . . . . Non-combat . | . . . . . . Combat . | . . . . . . Robot Hacks Applied . | . . . . . . Relay Couplers Released . | . . . . . . Fabnet Peak Effective % . | . . . . . . Robots Rewired . | . . . . . . Allies Hacked . | . . . . . . Hacks Repelled . | . . . . . . Allies | -11 -10 -10 -10 -9 -9 -------- Run | Yrd Mat Min Sub Rec Scr Total Allies . | . . . . . . Largest Group . | . . . . . . Highest-Rated Group . | . . . . . . Highest-Rated Ally . | . . . . . . Total Orders . | . . . . . . Ally Attacks . | . . . . . . Total Damage . | . . . . . . Kills . | . . . . . . Allies Corrupted . | . . . . . . Allies Melted . | . . . . . . Intel | -11 -10 -10 -10 -9 -9 ------- Run | Yrd Mat Min Sub Rec Scr Active Infowar (turns) 6846 | 160 1482 1 2149 1251 1803 Sensors 5202 | . . 1 2149 1249 1803 Terrain 2 | . . . . 2 . Seismic 1642 | 160 1482 . . . . Robot Analysis Total 2 | . 2 . . . . Derelict Logs Recovered 7 | . . 1 1 . 5 Drone Launches . | . . . . . . Drone Recoveries . | . . . . . . Exploration | -11 -10 -10 -10 -9 -9 ------------- Run | Yrd Mat Min Sub Rec Scr Turns Passed 16832 | 241 2451 1590 6925 1253 4372 Spaces Moved 8244 | 112 973 652 2974 685 2848 Core 2 | 2 . . . . . Treads 4737 | 110 973 652 2974 28 . Legs . | . . . . . . Wheels 3505 | . . . . 657 2848 Hover . | . . . . . . Flight . | . . . . . . Fastest Speed 50 | 50 160 240 160 130 115 Average Speed 187 | 158 220 240 216 150 144 Slowest Speed 360 | 160 240 240 360 360 205 Overloaded Moves . | . . . . . . Propulsion Burnouts . | . . . . . . Robots Hopped . | . . . . . . Potential Cave-ins . | . . . . . . Cave-ins Triggered . | . . . . . . Exploration Rate (%) 79 | 5 96 99 90 93 95 Regions Visited 5 Branch Regions 4 Pre-discovered Areas 11 | . 3 . 1 6 1 Known Exits Taken 2 | . 1 . 1 . . Unknown Exits Taken 3 | 1 . 1 . 1 . Scrap Searched 17 | . . 1 12 . 4 Spaces Dug 62 | . . . 51 11 . Terrain Destroyed 192 | . 9 25 147 11 . Melee 34 | . . . 23 11 . Projectile 8 | . . . 8 . . AOE 150 | . 9 25 116 . . Terrain Rammed . | . . . . . . Walls Destroyed . | . . . . . . Machines Disabled . | . . . . . . Actions | -11 -10 -10 -10 -9 -9 --------- Run | Yrd Mat Min Sub Rec Scr Total 9262 | 141 1146 674 3311 877 3113 Wait 394 | . 52 5 109 138 90 Move 8239 | 111 972 651 2973 684 2848 Hop . | . . . . . . Pick Up 160 | 6 22 6 31 7 88 Fast Attach 32 | 7 2 . 9 2 12 Attach 24 | . 4 1 8 2 9 Detach 4 | . . 1 2 . 1 Swap 49 | . 17 1 24 4 3 Drop 98 | 1 10 4 27 7 49 Fire 145 | 16 67 4 56 . 2 Melee 103 | . . . 59 33 11 Ram . | . . . . . . Kick . | . . . . . . Crush 1 | . . 1 . . . Escape Stasis . | . . . . . . Rewire . | . . . . . . Trap . | . . . . . . Miscellaneous 13 | . . . 13 . . Route ------- -11/Scrapyard -10/Materials (discovered 6 exits: *Mat x3 / *Min x2 / *Sub) -10/Mines (discovered 4 exits: *Mat x2 / [*Exi] / *Sub) -10/Subcaves (discovered 3 exits: *Mat x2 / *Rec) -9/Recycling -9/Scraptown (discovered 2 exits: [*Fac x2]) History --------- Turn | Location | Event 7 | -11/Scrapyard | Discovered new exit (range 15) 242 | -11/Scrapyard | Entered Materials 315 | -10/Materials | Build established: Mutant 580 | -10/Materials | Discovered new exit (range 13) 685 | -10/Materials | Discovered new exit (range 6) 742 | -10/Materials | Derelicts attacked the area 821 | -10/Materials | Discovered new exit (range 7) 1591 | -10/Materials | Discovered new exit (range 9) 1774 | -10/Materials | Discovered new exit (range 3) 1906 | -10/Materials | Discovered new exit (range 14) 2163 | -10/Materials | Learned location of 2 exits from Subcaves 2207 | -10/Materials | Learned location of Mines (-10) 2241 | -10/Materials | Learned location of Mines (-9) 2264 | -10/Materials | Identified exit to Mines 2264 | -10/Materials | Identified exit to Materials 2278 | -10/Materials | Learned location of 2 exits from Subcaves 2291 | -10/Materials | Learned location of 3 exits from Materials 2693 | -10/Materials | Entered Mines 2774 | -10/Mines | Deemed a non-threat by the Exiles lab entrance 2774 | -10/Mines | Discovered new exit (range 5) 3091 | -10/Mines | Found a damaged Exp. Sensor Array with a note attached 3096 | -10/Mines | Found Prototype Device 3241 | -10/Mines | Discovered exit to Materials (range 11) 3404 | -10/Mines | A weapon hastily lodged in a ceiling crevice suddenly fell to the ground 3508 | -10/Mines | Learned 4 Materials zone layouts 3691 | -10/Mines | Identified Exp. Sensor Array 3695 | -10/Mines | Discovered exit to Materials (range 5) 4271 | -10/Mines | Discovered new exit (range 6) 4283 | -10/Mines | Entered Subcaves 4284 | -10/Subcaves | Identified exit to Recycling 4285 | -10/Subcaves | Identified exit to Materials 4378 | -10/Subcaves | Shifting Twisted Machinery released Battle Cannon 4429 | -10/Subcaves | Shifting Twisted Machinery released Spk. Treads 4538 | -10/Subcaves | A swath of the cavern ceiling suddenly collapsed 5659 | -10/Subcaves | Visited Clippyterm 5664 | -10/Subcaves | Learned Research machine intel 5664 | -10/Subcaves | Learned Factory garrison access intel 5697 | -10/Subcaves | Build established: Subdweller-Mutant 6886 | -10/Subcaves | Core integrity fell below 50% 7741 | -10/Subcaves | Ambushed by Subdwellers from Twisted Machinery 7958 | -10/Subcaves | Visited 4L-MR0's lab 7977 | -10/Subcaves | Found Tower Shield 7978 | -10/Subcaves | Attached Tower Shield, gained temporary slots: Power, Propulsion x2, Utility x2, Weapon x2 8555 | -10/Subcaves | Learned location of Zion (-7) 8555 | -10/Subcaves | Met a Zionite searching for "candidates" 8615 | -10/Subcaves | A swath of the cavern ceiling suddenly collapsed 8691 | -10/Subcaves | Shifting Twisted Machinery released Sub. Monowheel 8714 | -10/Subcaves | Shifting Twisted Machinery released Battle Cannon 8828 | -10/Subcaves | Shifting Twisted Machinery released Flamer 8831 | -10/Subcaves | Shifting Twisted Machinery released Scrap Shield 9724 | -10/Subcaves | Build established: Mutant 11208 | -10/Subcaves | Entered Recycling 11209 | -9/Recycling | Joined Warlord attack on 0b10 via Recycling 11662 | -9/Recycling | Scanned before Scraplab entrance 12225 | -9/Recycling | Build established: Scavenger-Mutant 12445 | -9/Recycling | Entered Scraplab 12457 | -9/Recycling | Discovered new exit (range 3) 12461 | -9/Recycling | Entered Scraptown 12463 | -9/Scraptown | System corruption cleaned by C-Scrubber 12603 | -9/Scraptown | Visited SPCMW 12648 | -9/Scraptown | Visited Cave Peace 12730 | -9/Scraptown | Build established: Mutant 12903 | -9/Scraptown | Visited UFD Registry 12903 | -9/Scraptown | Registered with UFD as "Chainhead" 12919 | -9/Scraptown | Visited The Evicted 12945 | -9/Scraptown | Visited Spacefarers 13028 | -9/Scraptown | Visited Symbiants 13058 | -9/Scraptown | Visited Assassins FH 13076 | -9/Scraptown | Visited TADAMA 13137 | -9/Scraptown | Scanned Subdweller tech in exchange for log data 13141 | -9/Scraptown | Learned location of 2 exits from Factory 13142 | -9/Scraptown | Learned Research emergency access door positions 13143 | -9/Scraptown | Learned 8 Research zone layouts 13146 | -9/Scraptown | Learned location of 1 exit from Upper Caves 13161 | -9/Scraptown | Discovered new exit (range 11) 13872 | -9/Scraptown | Visited A0-MCA Data Center 13890 | -9/Scraptown | Visited Abandonware Association 13906 | -9/Scraptown | Learned abandonware demo "HACKBUD.EXE" 13937 | -9/Scraptown | Visited Scrap Suit Storage 14001 | -9/Scraptown | Delivered Scrap Shield to a Scientist 14141 | -9/Scraptown | Visited Science Testing Area 14165 | -9/Scraptown | Visited Research Penetration Think Tank 14193 | -9/Scraptown | Visited Derelict Rescue Squad 14205 | -9/Scraptown | Found DRS Beacon 14253 | -9/Scraptown | Visited Scrapoid Pod Storage 14280 | -9/Scraptown | Found Unknown Device 14280 | -9/Scraptown | Identified Scrapoid Pod 14402 | -9/Scraptown | Visited Curators Association 14514 | -9/Scraptown | Discovered new exit (range 5) 14637 | -9/Scraptown | Given a B rating by A0-MCA 14658 | -9/Scraptown | Found A0-MCA's Component Scanner 14922 | -9/Scraptown | Found Scrap Suit 15339 | -9/Scraptown | Build established: Hauler-Mutant 16548 | -9/Scraptown | Met Optimus 16548 | -9/Scraptown | Accepted into 0bPrime 16762 | -9/Scraptown | Build established: Derelict-Tank 16780 | -9/Scraptown | Civil war broke out across Scraptown 16802 | -9/Scraptown | Attacked by Scraptown defenders 16819 | -9/Scraptown | Found Siege Articulator 16824 | -9/Scraptown | Found Tri-treads 16829 | -9/Scraptown | Found Prototype Ballistic Cannon 16830 | -9/Scraptown | Core integrity fell below 20% 16833 | -9/Scraptown | Destroyed by Optimus with Helical Railgun Last Messages --------------- 16821_ Temporary Propulsion slot lost. 16821_ Temporary Utility slot lost. 16821_ Temporary Weapon slot lost. 16822_ Penetrated by Slug. 16822_ Com. Wheel destroyed. 16824_ Acquired Tri-treads. 16824_ Imp. Ion Engine destroyed. 16825_ JY-3P0(j) destroyed. 16828_ Dropped IFF Parser. 16828_ Dropped ECM Suite. 16828_ Slug penetrates WK-K31(j). 16828_ Slug penetrates Machine. 16829_ Acquired Prototype Ballistic Cannon. 16829_ Force Field destroyed. 16829_ Imp. Medium Treads destroyed. 16830_ Hvy. EM Pulse Gun destroyed. 16830_ Critical hit (Burn: +50). 16831_ WK-K31(j) destroyed. 16831_ Mak. Axe destroyed. 16833_ Penetrated by Slug. Map ----- +----------------------------------------------------+ | "" ""##"" " "#??????""" " """#???#""""" | | "" ""##" "#??????? "#???#" | | "" ""##" ""#???????"" """#???#" | | "" ""##" " "#????????? #???#" | | " "##""" " "#???????????""""#???#" | | ##"" ""#????????????# #????###### | | ## ################## ####???????##### ########### | | #???????#"""" """"""""""" | | #???????#" | | #???????#" | | #???????#" | | #???????#" | | ################ #???#####" | | ???????????????# ! #???#"""" """""""""" | | #####??######### =%! #???#"""" """""""""" | | # ###""""" # [! #???#"""" ""###### | | # " " # " " #???#"""" ""# | | # "" " # # #???#"""" ""# | | # " " # """ # ###?#"""" ""# "" | | # "" # """ # ""#"#"""" ""# "" | | # " " # """ # """"#"""" ""# " | | # " " ## """ # ""#######" "" "" | | # " ## """% # ###?????#" "" "" | | # " " ## # #########" ""# " | | # " " # [ ""# "" | | # ""##""""" ; % @ ""# "" | | ################ [ !!!!x ""# | | ???????????????# *!!j ! ""# | | ################ !*%!3%[ ! ""###### | | ! =! !![ | """""""""" | | *%= *!!![ """""""""" | | ! =[ =!*x | | !%* =[ =p[ | | ! =%!%= | | #""""#! | | %% *%= #????#" | | ==[= #????#"""""" """"""""" | | ##########!%#""####;## ####????####### ######### | | ##????#!%* ##?# #????????#" #???# | | "" #????? =[ #??# #????????#""" """#???# | | "" #?????# " #??# #????????#"""" """#???# | | " #?????# """ #??# #????????#""" "!"#???# | | " #?????# """"" #??# #????????#""" """#???# | | " #?????# ""X"" #??# #????????#""" """#???# | | " #?????# "" "" #??# #????????#"""""""""#???# | | "" #?????# #??# #????????#"""""""""#???# | | "" #?????#########??# #????????#"""""""""#???#" | | ##????????????????# #????????#"""""""""#???## | | ###??????????????????# #?????????#########?????? | | ??????????############ #???????????????????????? | +----------------------------------------------------+ Best States ------------- Heat Dissipation 25 Energy Generation 19 Energy Capacity 430 Matter Stores 300 Matter Capacity 300 Sight Range 16 Robot Scan Range 20 Terrain Scan Density 10 Armor Coverage 2800 Evasion (%) 40 Targeting Accuracy 5 Recoil Reduction 2 Authchip Count 2 Item Schematics ----------------- Arm. Huge Wheel | -9/Recycling | Hacked Plasma Cutter | -9/Recycling | Hacked Robot Schematics ------------------ None Fabricated ------------ Nothing Repaired ---------- Nothing Alien Tech Used ----------------- None Achievements -------------- None Challenges ------------ None Game ------ Seed LobotomyDimensionalCannon Manual? 0 Play Time 01:15:56 Cumulative 289.3 hours Start 2025.06.08 @ 12:35:50 End 2025.06.08 @ 15:28:56 Sessions 5 Manual Loads 0 Difficulty Rogue Special Mode None Game No. 148 Rogue 148 Adventurer 0 Explorer 0 Win Type - Total 1 Types 0/0/0/0/1/0/0/0/0/0 Lore% 74 Gallery% 75 Achievement% 64 Wizard Run 0 Options --------- Layout 0 ASCII 0 Keyboard 0 Movement Mouse Keybinds 0 Fullscreen 1 Font 24/Smallcaps Map View 183x50 Zoom Use 0% Tactical HUD 1 Map Filters NONE Filters NONE Steam 0 RUN: 8c0a56c6-7777-4552-a85c-654e7f3a5e82